Workbook

Sheet บันทึกไมล์การเดินทาง
B1: บันทึกไมล์การเดินทาง
C11: ไมล์ | E11: ผลรวม
C12: ที่เบิกค่าใช้จ่ายได้ | E12: การเบิกค่าใช้จ่าย
C17: 2012-05-01 | E17: 2012-05-10
C19: เวลา | E19: เวลา
C20: เริ่มต้น | E20: สิ้นสุด
C26: 54 | E26: 9,800
C28: การเบิกค่าใช้จ่าย | E28: มาตรวัดเชื้อเพลิง
C29: ¢/ไมล์ | E29: ก่อนหน้านี้

Sheet ข้อมูลบันทึก
B1: บันทึกไมล์การเดินทาง
B5: วันที่ | C5: กิจกรรม | D5: มาตรระยะทาง 1 | E5: สถานที่ | F5: มาตรระยะทาง 2 | G5: ปลายทาง | H5: เบิกค่าใช้จ่าย | I5: แกลลอน | J5: ต้นทุน | K5: ไมล์ | L5: ไมล์ต่อแกลลอน | M5: ¢/ไมล์ | N5: หมายเหตุ
B6: 2012-05-01 | C6: การเดินทาง | D6: 10,123 | E6: Chevron ถ.ดินแดง | F6: 10,130 | I6: 15.56 | J6: ฿64.11 | K6: =miles -> 7 | L6: =IF(OR(LEN(data[[#This Row],[มาตรระยะทาง 2]]),data[[#This Row],[มาตรระยะทาง 1]]=""),"",IFERROR(data[[#This Row],[ไมล์]]/data[[#This Row],[แกลลอน]],"")) ->  | M6: =IF(data[[#This Row],[ไมล์ต่อแกลลอน]]="","",100*data[[#This Row],[ต้นทุน]]/data[[#This Row],[ไมล์]]) -> 
B7: 2012-05-01 | C7: การเดินทาง | D7: 10,130 | E7: สำนักงาน | F7: 10,200 | G7: ถ.พหลโยธิน | H7: ใช่ | K7: =miles -> 70 | L7: =IF(OR(LEN(data[[#This Row],[มาตรระยะทาง 2]]),data[[#This Row],[มาตรระยะทาง 1]]=""),"",IFERROR(data[[#This Row],[ไมล์]]/data[[#This Row],[แกลลอน]],"")) ->  | M7: =IF(data[[#This Row],[ไมล์ต่อแกลลอน]]="","",100*data[[#This Row],[ต้นทุน]]/data[[#This Row],[ไมล์]]) -> 
B8: 2012-05-01 | C8: การเดินทาง | D8: 10,200 | E8: เพชรบุรี | F8: 10,285 | G8: สำนักงาน | H8: ใช่ | K8: =miles -> 85 | L8: =IF(OR(LEN(data[[#This Row],[มาตรระยะทาง 2]]),data[[#This Row],[มาตรระยะทาง 1]]=""),"",IFERROR(data[[#This Row],[ไมล์]]/data[[#This Row],[แกลลอน]],"")) ->  | M8: =IF(data[[#This Row],[ไมล์ต่อแกลลอน]]="","",100*data[[#This Row],[ต้นทุน]]/data[[#This Row],[ไมล์]]) -> 
B9: 2012-05-02 | C9: การเดินทาง | D9: 10,285 | E9: สำนักงาน | F9: 10,450 | G9: อารีย์ | H9: ใช่ | K9: =miles -> 165 | L9: =IF(OR(LEN(data[[#This Row],[มาตรระยะทาง 2]]),data[[#This Row],[มาตรระยะทาง 1]]=""),"",IFERROR(data[[#This Row],[ไมล์]]/data[[#This Row],[แกลลอน]],"")) ->  | M9: =IF(data[[#This Row],[ไมล์ต่อแกลลอน]]="","",100*data[[#This Row],[ต้นทุน]]/data[[#This Row],[ไมล์]]) -> 
B10: 2012-05-02 | C10: น้ำมัน | D10: 10,450 | E10: Shell | I10: 11.20 | J10: ฿55.42 | K10: =miles -> 650 | L10: =IF(OR(LEN(data[[#This Row],[มาตรระยะทาง 2]]),data[[#This Row],[มาตรระยะทาง 1]]=""),"",IFERROR(data[[#This Row],[ไมล์]]/data[[#This Row],[แกลลอน]],"")) -> 58.0 | M10: =IF(data[[#This Row],[ไมล์ต่อแกลลอน]]="","",100*data[[#This Row],[ต้นทุน]]/data[[#This Row],[ไมล์]]) -> 8.5
B11: 2012-05-02 | C11: การเดินทาง | D11: 10,500 | E11: อารีย์ | F11: 10,518 | G11: สำนักงาน | H11: ใช่ | K11: =miles -> 18 | L11: =IF(OR(LEN(data[[#This Row],[มาตรระยะทาง 2]]),data[[#This Row],[มาตรระยะทาง 1]]=""),"",IFERROR(data[[#This Row],[ไมล์]]/data[[#This Row],[แกลลอน]],"")) ->  | M11: =IF(data[[#This Row],[ไมล์ต่อแกลลอน]]="","",100*data[[#This Row],[ต้นทุน]]/data[[#This Row],[ไมล์]]) -> 
B12: 2012-05-03 | C12: การเดินทาง | D12: 10,518 | E12: สำนักงาน | F12: 10,745 | G12: สำนักงาน | H12: ใช่ | K12: =miles -> 227 | L12: =IF(OR(LEN(data[[#This Row],[มาตรระยะทาง 2]]),data[[#This Row],[มาตรระยะทาง 1]]=""),"",IFERROR(data[[#This Row],[ไมล์]]/data[[#This Row],[แกลลอน]],"")) ->  | M12: =IF(data[[#This Row],[ไมล์ต่อแกลลอน]]="","",100*data[[#This Row],[ต้นทุน]]/data[[#This Row],[ไมล์]]) -> 
B13: 2012-05-04 | C13: น้ำมัน | D13: 10,745 | E13: Chevron ถ.ดินแดง | I13: 16.60 | J13: ฿69.24 | K13: =miles -> 295 | L13: =IF(OR(LEN(data[[#This Row],[มาตรระยะทาง 2]]),data[[#This Row],[มาตรระยะทาง 1]]=""),"",IFERROR(data[[#This Row],[ไมล์]]/data[[#This Row],[แกลลอน]],"")) -> 17.8 | M13: =IF(data[[#This Row],[ไมล์ต่อแกลลอน]]="","",100*data[[#This Row],[ต้นทุน]]/data[[#This Row],[ไมล์]]) -> 23.5
B14: 2012-05-04 | C14: การเดินทาง | D14: 10,745 | E14: สำนักงาน | F14: 10,800 | G14: บางบัวทอง | H14: ใช่ | K14: =miles -> 55 | L14: =IF(OR(LEN(data[[#This Row],[มาตรระยะทาง 2]]),data[[#This Row],[มาตรระยะทาง 1]]=""),"",IFERROR(data[[#This Row],[ไมล์]]/data[[#This Row],[แกลลอน]],"")) ->  | M14: =IF(data[[#This Row],[ไมล์ต่อแกลลอน]]="","",100*data[[#This Row],[ต้นทุน]]/data[[#This Row],[ไมล์]]) -> 
B15: 2012-05-04 | C15: การเดินทาง | D15: 10,800 | E15: บางบัวทอง | F15: 10,875 | G15: สำนักงาน | H15: ใช่ | K15: =miles -> 75 | L15: =IF(OR(LEN(data[[#This Row],[มาตรระยะทาง 2]]),data[[#This Row],[มาตรระยะทาง 1]]=""),"",IFERROR(data[[#This Row],[ไมล์]]/data[[#This Row],[แกลลอน]],"")) ->  | M15: =IF(data[[#This Row],[ไมล์ต่อแกลลอน]]="","",100*data[[#This Row],[ต้นทุน]]/data[[#This Row],[ไมล์]]) -> 
B16: 2012-05-07 | C16: การเดินทาง | D16: 10,875 | E16: สำนักงาน | F16: 10,921 | G16: ถ.พหลโยธิน | H16: ใช่ | K16: =miles -> 46 | L16: =IF(OR(LEN(data[[#This Row],[มาตรระยะทาง 2]]),data[[#This Row],[มาตรระยะทาง 1]]=""),"",IFERROR(data[[#This Row],[ไมล์]]/data[[#This Row],[แกลลอน]],"")) ->  | M16: =IF(data[[#This Row],[ไมล์ต่อแกลลอน]]="","",100*data[[#This Row],[ต้นทุน]]/data[[#This Row],[ไมล์]]) -> 
B17: 2012-05-07 | C17: การเดินทาง | D17: 10,921 | E17: เพชรบุรี | F17: 10,969 | G17: สำนักงาน | H17: ใช่ | K17: =miles -> 48 | L17: =IF(OR(LEN(data[[#This Row],[มาตรระยะทาง 2]]),data[[#This Row],[มาตรระยะทาง 1]]=""),"",IFERROR(data[[#This Row],[ไมล์]]/data[[#This Row],[แกลลอน]],"")) ->  | M17: =IF(data[[#This Row],[ไมล์ต่อแกลลอน]]="","",100*data[[#This Row],[ต้นทุน]]/data[[#This Row],[ไมล์]]) -> 
B18: 2012-05-09 | C18: การเดินทาง | D18: 10,969 | E18: สำนักงาน | F18: 11,000 | G18: ลาดพร้าว | H18: ใช่ | K18: =miles -> 31 | L18: =IF(OR(LEN(data[[#This Row],[มาตรระยะทาง 2]]),data[[#This Row],[มาตรระยะทาง 1]]=""),"",IFERROR(data[[#This Row],[ไมล์]]/data[[#This Row],[แกลลอน]],"")) ->  | M18: =IF(data[[#This Row],[ไมล์ต่อแกลลอน]]="","",100*data[[#This Row],[ต้นทุน]]/data[[#This Row],[ไมล์]]) -> 
B19: 2012-05-09 | C19: การเดินทาง | D19: 11,000 | E19: ลาดพร้าว | F19: 11,100 | G19: บ้าน | H19: ไม่ใช่ | K19: =miles -> 100 | L19: =IF(OR(LEN(data[[#This Row],[มาตรระยะทาง 2]]),data[[#This Row],[มาตรระยะทาง 1]]=""),"",IFERROR(data[[#This Row],[ไมล์]]/data[[#This Row],[แกลลอน]],"")) ->  | M19: =IF(data[[#This Row],[ไมล์ต่อแกลลอน]]="","",100*data[[#This Row],[ต้นทุน]]/data[[#This Row],[ไมล์]]) -> 

Sheet การคำนวณ (hidden)
A1: *** แผ่นงานนี้ยังซ่อนอยู่ ***
I6: =OFFSET(I9,,secondAxis="fuel cost") -> ¢/ไมล์
M7: 2
H8: การเดินทาง | I8: น้ำมัน | J8: น้ำมัน | L8: Second Axis: | M8: =REPT("ไมล์ต่อแกลลอน",M7=1)&REPT("Fuel Cost",M7=2) -> Fuel Cost
H9: จำนวนไมล์ที่ขับ | I9: ไมล์ต่อแกลลอน | J9: ¢/ไมล์
C10: ระยะทางที่เบิกค่าใช้จ่ายได้: | D10: =SUMIFS(data[ไมล์],data[เบิกค่าใช้จ่าย],"ใช่",data[วันที่],">="&periodStart,data[วันที่],"<="&periodEnd) -> 820 | F10: 1 | G10: =periodStart -> 2012-05-01 | H10: =SUMIFS(data[ไมล์],data[วันที่],G10,data[กิจกรรม],$H$8) -> 162 | I10: =IFERROR(AVERAGEIFS(data[ไมล์ต่อแกลลอน],data[วันที่],G10,data[กิจกรรม],$I$8),NA()) ->  | J10: =IFERROR(AVERAGEIFS(data[¢/ไมล์],data[วันที่],G10,data[กิจกรรม],$J$8),NA()) -> 
C11: ระยะทางที่เบิกค่าใช้จ่ายได้: | D11: =D10*ReimbursementPerMile/100 -> ฿442.80 | F11: 2 | G11: =G10+1 -> 2012-05-02 | H11: =SUMIFS(data[ไมล์],data[วันที่],G11,data[กิจกรรม],$H$8) -> 183 | I11: =IFERROR(AVERAGEIFS(data[ไมล์ต่อแกลลอน],data[วันที่],G11,data[กิจกรรม],$I$8),NA()) -> 58.0 | J11: =IFERROR(AVERAGEIFS(data[¢/ไมล์],data[วันที่],G11,data[กิจกรรม],$J$8),NA()) -> 8.5
F12: 3 | G12: 2012-05-03 | H12: =SUMIFS(data[ไมล์],data[วันที่],G12,data[กิจกรรม],$H$8) -> 227 | I12: =IFERROR(AVERAGEIFS(data[ไมล์ต่อแกลลอน],data[วันที่],G12,data[กิจกรรม],$I$8),NA()) ->  | J12: =IFERROR(AVERAGEIFS(data[¢/ไมล์],data[วันที่],G12,data[กิจกรรม],$J$8),NA()) -> 
F13: 4 | G13: 2012-05-04 | H13: =SUMIFS(data[ไมล์],data[วันที่],G13,data[กิจกรรม],$H$8) -> 130 | I13: =IFERROR(AVERAGEIFS(data[ไมล์ต่อแกลลอน],data[วันที่],G13,data[กิจกรรม],$I$8),NA()) -> 17.8 | J13: =IFERROR(AVERAGEIFS(data[¢/ไมล์],data[วันที่],G13,data[กิจกรรม],$J$8),NA()) -> 23.5
F14: 5 | G14: 2012-05-05 | H14: =SUMIFS(data[ไมล์],data[วันที่],G14,data[กิจกรรม],$H$8) -> 0 | I14: =IFERROR(AVERAGEIFS(data[ไมล์ต่อแกลลอน],data[วันที่],G14,data[กิจกรรม],$I$8),NA()) ->  | J14: =IFERROR(AVERAGEIFS(data[¢/ไมล์],data[วันที่],G14,data[กิจกรรม],$J$8),NA()) -> 
F15: 6 | G15: 2012-05-06 | H15: =SUMIFS(data[ไมล์],data[วันที่],G15,data[กิจกรรม],$H$8) -> 0 | I15: =IFERROR(AVERAGEIFS(data[ไมล์ต่อแกลลอน],data[วันที่],G15,data[กิจกรรม],$I$8),NA()) ->  | J15: =IFERROR(AVERAGEIFS(data[¢/ไมล์],data[วันที่],G15,data[กิจกรรม],$J$8),NA()) -> 
F16: 7 | G16: 2012-05-07 | H16: =SUMIFS(data[ไมล์],data[วันที่],G16,data[กิจกรรม],$H$8) -> 94 | I16: =IFERROR(AVERAGEIFS(data[ไมล์ต่อแกลลอน],data[วันที่],G16,data[กิจกรรม],$I$8),NA()) ->  | J16: =IFERROR(AVERAGEIFS(data[¢/ไมล์],data[วันที่],G16,data[กิจกรรม],$J$8),NA()) -> 
F17: 8 | G17: 2012-05-08 | H17: =SUMIFS(data[ไมล์],data[วันที่],G17,data[กิจกรรม],$H$8) -> 0 | I17: =IFERROR(AVERAGEIFS(data[ไมล์ต่อแกลลอน],data[วันที่],G17,data[กิจกรรม],$I$8),NA()) ->  | J17: =IFERROR(AVERAGEIFS(data[¢/ไมล์],data[วันที่],G17,data[กิจกรรม],$J$8),NA()) -> 
F18: 9 | G18: 2012-05-09 | H18: =SUMIFS(data[ไมล์],data[วันที่],G18,data[กิจกรรม],$H$8) -> 131 | I18: =IFERROR(AVERAGEIFS(data[ไมล์ต่อแกลลอน],data[วันที่],G18,data[กิจกรรม],$I$8),NA()) ->  | J18: =IFERROR(AVERAGEIFS(data[¢/ไมล์],data[วันที่],G18,data[กิจกรรม],$J$8),NA()) -> 
F19: 10 | G19: 2012-05-10 | H19: =SUMIFS(data[ไมล์],data[วันที่],G19,data[กิจกรรม],$H$8) -> 0 | I19: =IFERROR(AVERAGEIFS(data[ไมล์ต่อแกลลอน],data[วันที่],G19,data[กิจกรรม],$I$8),NA()) ->  | J19: =IFERROR(AVERAGEIFS(data[¢/ไมล์],data[วันที่],G19,data[กิจกรรม],$J$8),NA()) -> 
F20: 11 | G20: 2012-05-11 | H20: =SUMIFS(data[ไมล์],data[วันที่],G20,data[กิจกรรม],$H$8) -> 0 | I20: =IFERROR(AVERAGEIFS(data[ไมล์ต่อแกลลอน],data[วันที่],G20,data[กิจกรรม],$I$8),NA()) ->  | J20: =IFERROR(AVERAGEIFS(data[¢/ไมล์],data[วันที่],G20,data[กิจกรรม],$J$8),NA()) -> 
F21: 12 | G21: 2012-05-12 | H21: =SUMIFS(data[ไมล์],data[วันที่],G21,data[กิจกรรม],$H$8) -> 0 | I21: =IFERROR(AVERAGEIFS(data[ไมล์ต่อแกลลอน],data[วันที่],G21,data[กิจกรรม],$I$8),NA()) ->  | J21: =IFERROR(AVERAGEIFS(data[¢/ไมล์],data[วันที่],G21,data[กิจกรรม],$J$8),NA()) -> 
F22: 13 | G22: 2012-05-13 | H22: =SUMIFS(data[ไมล์],data[วันที่],G22,data[กิจกรรม],$H$8) -> 0 | I22: =IFERROR(AVERAGEIFS(data[ไมล์ต่อแกลลอน],data[วันที่],G22,data[กิจกรรม],$I$8),NA()) ->  | J22: =IFERROR(AVERAGEIFS(data[¢/ไมล์],data[วันที่],G22,data[กิจกรรม],$J$8),NA()) -> 
F23: 14 | G23: 2012-05-14 | H23: =SUMIFS(data[ไมล์],data[วันที่],G23,data[กิจกรรม],$H$8) -> 0 | I23: =IFERROR(AVERAGEIFS(data[ไมล์ต่อแกลลอน],data[วันที่],G23,data[กิจกรรม],$I$8),NA()) ->  | J23: =IFERROR(AVERAGEIFS(data[¢/ไมล์],data[วันที่],G23,data[กิจกรรม],$J$8),NA()) -> 
F24: 15 | G24: 2012-05-15 | H24: =SUMIFS(data[ไมล์],data[วันที่],G24,data[กิจกรรม],$H$8) -> 0 | I24: =IFERROR(AVERAGEIFS(data[ไมล์ต่อแกลลอน],data[วันที่],G24,data[กิจกรรม],$I$8),NA()) ->  | J24: =IFERROR(AVERAGEIFS(data[¢/ไมล์],data[วันที่],G24,data[กิจกรรม],$J$8),NA()) -> 
F25: 16 | G25: 2012-05-16 | H25: =SUMIFS(data[ไมล์],data[วันที่],G25,data[กิจกรรม],$H$8) -> 0 | I25: =IFERROR(AVERAGEIFS(data[ไมล์ต่อแกลลอน],data[วันที่],G25,data[กิจกรรม],$I$8),NA()) ->  | J25: =IFERROR(AVERAGEIFS(data[¢/ไมล์],data[วันที่],G25,data[กิจกรรม],$J$8),NA()) -> 
F26: 17 | G26: 2012-05-17 | H26: =SUMIFS(data[ไมล์],data[วันที่],G26,data[กิจกรรม],$H$8) -> 0 | I26: =IFERROR(AVERAGEIFS(data[ไมล์ต่อแกลลอน],data[วันที่],G26,data[กิจกรรม],$I$8),NA()) ->  | J26: =IFERROR(AVERAGEIFS(data[¢/ไมล์],data[วันที่],G26,data[กิจกรรม],$J$8),NA()) -> 
F27: 18 | G27: 2012-05-18 | H27: =SUMIFS(data[ไมล์],data[วันที่],G27,data[กิจกรรม],$H$8) -> 0 | I27: =IFERROR(AVERAGEIFS(data[ไมล์ต่อแกลลอน],data[วันที่],G27,data[กิจกรรม],$I$8),NA()) ->  | J27: =IFERROR(AVERAGEIFS(data[¢/ไมล์],data[วันที่],G27,data[กิจกรรม],$J$8),NA()) -> 
F28: 19 | G28: 2012-05-19 | H28: =SUMIFS(data[ไมล์],data[วันที่],G28,data[กิจกรรม],$H$8) -> 0 | I28: =IFERROR(AVERAGEIFS(data[ไมล์ต่อแกลลอน],data[วันที่],G28,data[กิจกรรม],$I$8),NA()) ->  | J28: =IFERROR(AVERAGEIFS(data[¢/ไมล์],data[วันที่],G28,data[กิจกรรม],$J$8),NA()) -> 
F29: 20 | G29: 2012-05-20 | H29: =SUMIFS(data[ไมล์],data[วันที่],G29,data[กิจกรรม],$H$8) -> 0 | I29: =IFERROR(AVERAGEIFS(data[ไมล์ต่อแกลลอน],data[วันที่],G29,data[กิจกรรม],$I$8),NA()) ->  | J29: =IFERROR(AVERAGEIFS(data[¢/ไมล์],data[วันที่],G29,data[กิจกรรม],$J$8),NA()) -> 
F30: 21 | G30: 2012-05-21 | H30: =SUMIFS(data[ไมล์],data[วันที่],G30,data[กิจกรรม],$H$8) -> 0 | I30: =IFERROR(AVERAGEIFS(data[ไมล์ต่อแกลลอน],data[วันที่],G30,data[กิจกรรม],$I$8),NA()) ->  | J30: =IFERROR(AVERAGEIFS(data[¢/ไมล์],data[วันที่],G30,data[กิจกรรม],$J$8),NA()) -> 
F31: 22 | G31: 2012-05-22 | H31: =SUMIFS(data[ไมล์],data[วันที่],G31,data[กิจกรรม],$H$8) -> 0 | I31: =IFERROR(AVERAGEIFS(data[ไมล์ต่อแกลลอน],data[วันที่],G31,data[กิจกรรม],$I$8),NA()) ->  | J31: =IFERROR(AVERAGEIFS(data[¢/ไมล์],data[วันที่],G31,data[กิจกรรม],$J$8),NA()) -> 
F32: 23 | G32: 2012-05-23 | H32: =SUMIFS(data[ไมล์],data[วันที่],G32,data[กิจกรรม],$H$8) -> 0 | I32: =IFERROR(AVERAGEIFS(data[ไมล์ต่อแกลลอน],data[วันที่],G32,data[กิจกรรม],$I$8),NA()) ->  | J32: =IFERROR(AVERAGEIFS(data[¢/ไมล์],data[วันที่],G32,data[กิจกรรม],$J$8),NA()) -> 
F33: 24 | G33: 2012-05-24 | H33: =SUMIFS(data[ไมล์],data[วันที่],G33,data[กิจกรรม],$H$8) -> 0 | I33: =IFERROR(AVERAGEIFS(data[ไมล์ต่อแกลลอน],data[วันที่],G33,data[กิจกรรม],$I$8),NA()) ->  | J33: =IFERROR(AVERAGEIFS(data[¢/ไมล์],data[วันที่],G33,data[กิจกรรม],$J$8),NA()) -> 
F34: 25 | G34: 2012-05-25 | H34: =SUMIFS(data[ไมล์],data[วันที่],G34,data[กิจกรรม],$H$8) -> 0 | I34: =IFERROR(AVERAGEIFS(data[ไมล์ต่อแกลลอน],data[วันที่],G34,data[กิจกรรม],$I$8),NA()) ->  | J34: =IFERROR(AVERAGEIFS(data[¢/ไมล์],data[วันที่],G34,data[กิจกรรม],$J$8),NA()) -> 
F35: 26 | G35: 2012-05-26 | H35: =SUMIFS(data[ไมล์],data[วันที่],G35,data[กิจกรรม],$H$8) -> 0 | I35: =IFERROR(AVERAGEIFS(data[ไมล์ต่อแกลลอน],data[วันที่],G35,data[กิจกรรม],$I$8),NA()) ->  | J35: =IFERROR(AVERAGEIFS(data[¢/ไมล์],data[วันที่],G35,data[กิจกรรม],$J$8),NA()) -> 
F36: 27 | G36: 2012-05-27 | H36: =SUMIFS(data[ไมล์],data[วันที่],G36,data[กิจกรรม],$H$8) -> 0 | I36: =IFERROR(AVERAGEIFS(data[ไมล์ต่อแกลลอน],data[วันที่],G36,data[กิจกรรม],$I$8),NA()) ->  | J36: =IFERROR(AVERAGEIFS(data[¢/ไมล์],data[วันที่],G36,data[กิจกรรม],$J$8),NA()) -> 
F37: 28 | G37: 2012-05-28 | H37: =SUMIFS(data[ไมล์],data[วันที่],G37,data[กิจกรรม],$H$8) -> 0 | I37: =IFERROR(AVERAGEIFS(data[ไมล์ต่อแกลลอน],data[วันที่],G37,data[กิจกรรม],$I$8),NA()) ->  | J37: =IFERROR(AVERAGEIFS(data[¢/ไมล์],data[วันที่],G37,data[กิจกรรม],$J$8),NA()) -> 
F38: 29 | G38: 2012-05-29 | H38: =SUMIFS(data[ไมล์],data[วันที่],G38,data[กิจกรรม],$H$8) -> 0 | I38: =IFERROR(AVERAGEIFS(data[ไมล์ต่อแกลลอน],data[วันที่],G38,data[กิจกรรม],$I$8),NA()) ->  | J38: =IFERROR(AVERAGEIFS(data[¢/ไมล์],data[วันที่],G38,data[กิจกรรม],$J$8),NA()) -> 
F39: 30 | G39: 2012-05-30 | H39: =SUMIFS(data[ไมล์],data[วันที่],G39,data[กิจกรรม],$H$8) -> 0 | I39: =IFERROR(AVERAGEIFS(data[ไมล์ต่อแกลลอน],data[วันที่],G39,data[กิจกรรม],$I$8),NA()) ->  | J39: =IFERROR(AVERAGEIFS(data[¢/ไมล์],data[วันที่],G39,data[กิจกรรม],$J$8),NA()) -> 
F40: 31 | G40: 2012-05-31 | H40: =SUMIFS(data[ไมล์],data[วันที่],G40,data[กิจกรรม],$H$8) -> 0 | I40: =IFERROR(AVERAGEIFS(data[ไมล์ต่อแกลลอน],data[วันที่],G40,data[กิจกรรม],$I$8),NA()) ->  | J40: =IFERROR(AVERAGEIFS(data[¢/ไมล์],data[วันที่],G40,data[กิจกรรม],$J$8),NA()) -> 
F41: 32 | G41: 2012-06-01 | H41: =SUMIFS(data[ไมล์],data[วันที่],G41,data[กิจกรรม],$H$8) -> 0 | I41: =IFERROR(AVERAGEIFS(data[ไมล์ต่อแกลลอน],data[วันที่],G41,data[กิจกรรม],$I$8),NA()) ->  | J41: =IFERROR(AVERAGEIFS(data[¢/ไมล์],data[วันที่],G41,data[กิจกรรม],$J$8),NA()) -> 
F42: 33 | G42: 2012-06-02 | H42: =SUMIFS(data[ไมล์],data[วันที่],G42,data[กิจกรรม],$H$8) -> 0 | I42: =IFERROR(AVERAGEIFS(data[ไมล์ต่อแกลลอน],data[วันที่],G42,data[กิจกรรม],$I$8),NA()) ->  | J42: =IFERROR(AVERAGEIFS(data[¢/ไมล์],data[วันที่],G42,data[กิจกรรม],$J$8),NA()) -> 
F43: 34 | G43: =G42+1 -> 2012-06-03 | H43: =SUMIFS(data[ไมล์],data[วันที่],G43,data[กิจกรรม],$H$8) -> 0 | I43: =IFERROR(AVERAGEIFS(data[ไมล์ต่อแกลลอน],data[วันที่],G43,data[กิจกรรม],$I$8),NA()) ->  | J43: =IFERROR(AVERAGEIFS(data[¢/ไมล์],data[วันที่],G43,data[กิจกรรม],$J$8),NA()) -> 
F44: 35 | G44: 2012-06-04 | H44: =SUMIFS(data[ไมล์],data[วันที่],G44,data[กิจกรรม],$H$8) -> 0 | I44: =IFERROR(AVERAGEIFS(data[ไมล์ต่อแกลลอน],data[วันที่],G44,data[กิจกรรม],$I$8),NA()) ->  | J44: =IFERROR(AVERAGEIFS(data[¢/ไมล์],data[วันที่],G44,data[กิจกรรม],$J$8),NA()) -> 
F45: 36 | G45: 2012-06-05 | H45: =SUMIFS(data[ไมล์],data[วันที่],G45,data[กิจกรรม],$H$8) -> 0 | I45: =IFERROR(AVERAGEIFS(data[ไมล์ต่อแกลลอน],data[วันที่],G45,data[กิจกรรม],$I$8),NA()) ->  | J45: =IFERROR(AVERAGEIFS(data[¢/ไมล์],data[วันที่],G45,data[กิจกรรม],$J$8),NA()) -> 
F46: 37 | G46: 2012-06-06 | H46: =SUMIFS(data[ไมล์],data[วันที่],G46,data[กิจกรรม],$H$8) -> 0 | I46: =IFERROR(AVERAGEIFS(data[ไมล์ต่อแกลลอน],data[วันที่],G46,data[กิจกรรม],$I$8),NA()) ->  | J46: =IFERROR(AVERAGEIFS(data[¢/ไมล์],data[วันที่],G46,data[กิจกรรม],$J$8),NA()) -> 
F47: 38 | G47: 2012-06-07 | H47: =SUMIFS(data[ไมล์],data[วันที่],G47,data[กิจกรรม],$H$8) -> 0 | I47: =IFERROR(AVERAGEIFS(data[ไมล์ต่อแกลลอน],data[วันที่],G47,data[กิจกรรม],$I$8),NA()) ->  | J47: =IFERROR(AVERAGEIFS(data[¢/ไมล์],data[วันที่],G47,data[กิจกรรม],$J$8),NA()) -> 
F48: 39 | G48: 2012-06-08 | H48: =SUMIFS(data[ไมล์],data[วันที่],G48,data[กิจกรรม],$H$8) -> 0 | I48: =IFERROR(AVERAGEIFS(data[ไมล์ต่อแกลลอน],data[วันที่],G48,data[กิจกรรม],$I$8),NA()) ->  | J48: =IFERROR(AVERAGEIFS(data[¢/ไมล์],data[วันที่],G48,data[กิจกรรม],$J$8),NA()) -> 
F49: 40 | G49: 2012-06-09 | H49: =SUMIFS(data[ไมล์],data[วันที่],G49,data[กิจกรรม],$H$8) -> 0 | I49: =IFERROR(AVERAGEIFS(data[ไมล์ต่อแกลลอน],data[วันที่],G49,data[กิจกรรม],$I$8),NA()) ->  | J49: =IFERROR(AVERAGEIFS(data[¢/ไมล์],data[วันที่],G49,data[กิจกรรม],$J$8),NA()) -> 
F50: 41 | G50: 2012-06-10 | H50: =SUMIFS(data[ไมล์],data[วันที่],G50,data[กิจกรรม],$H$8) -> 0 | I50: =IFERROR(AVERAGEIFS(data[ไมล์ต่อแกลลอน],data[วันที่],G50,data[กิจกรรม],$I$8),NA()) ->  | J50: =IFERROR(AVERAGEIFS(data[¢/ไมล์],data[วันที่],G50,data[กิจกรรม],$J$8),NA()) -> 
F51: 42 | G51: 2012-06-11 | H51: =SUMIFS(data[ไมล์],data[วันที่],G51,data[กิจกรรม],$H$8) -> 0 | I51: =IFERROR(AVERAGEIFS(data[ไมล์ต่อแกลลอน],data[วันที่],G51,data[กิจกรรม],$I$8),NA()) ->  | J51: =IFERROR(AVERAGEIFS(data[¢/ไมล์],data[วันที่],G51,data[กิจกรรม],$J$8),NA()) -> 
F52: 43 | G52: 2012-06-12 | H52: =SUMIFS(data[ไมล์],data[วันที่],G52,data[กิจกรรม],$H$8) -> 0 | I52: =IFERROR(AVERAGEIFS(data[ไมล์ต่อแกลลอน],data[วันที่],G52,data[กิจกรรม],$I$8),NA()) ->  | J52: =IFERROR(AVERAGEIFS(data[¢/ไมล์],data[วันที่],G52,data[กิจกรรม],$J$8),NA()) -> 
F53: 44 | G53: 2012-06-13 | H53: =SUMIFS(data[ไมล์],data[วันที่],G53,data[กิจกรรม],$H$8) -> 0 | I53: =IFERROR(AVERAGEIFS(data[ไมล์ต่อแกลลอน],data[วันที่],G53,data[กิจกรรม],$I$8),NA()) ->  | J53: =IFERROR(AVERAGEIFS(data[¢/ไมล์],data[วันที่],G53,data[กิจกรรม],$J$8),NA()) -> 
F54: 45 | G54: 2012-06-14 | H54: =SUMIFS(data[ไมล์],data[วันที่],G54,data[กิจกรรม],$H$8) -> 0 | I54: =IFERROR(AVERAGEIFS(data[ไมล์ต่อแกลลอน],data[วันที่],G54,data[กิจกรรม],$I$8),NA()) ->  | J54: =IFERROR(AVERAGEIFS(data[¢/ไมล์],data[วันที่],G54,data[กิจกรรม],$J$8),NA()) -> 
F55: 46 | G55: 2012-06-15 | H55: =SUMIFS(data[ไมล์],data[วันที่],G55,data[กิจกรรม],$H$8) -> 0 | I55: =IFERROR(AVERAGEIFS(data[ไมล์ต่อแกลลอน],data[วันที่],G55,data[กิจกรรม],$I$8),NA()) ->  | J55: =IFERROR(AVERAGEIFS(data[¢/ไมล์],data[วันที่],G55,data[กิจกรรม],$J$8),NA()) -> 
F56: 47 | G56: 2012-06-16 | H56: =SUMIFS(data[ไมล์],data[วันที่],G56,data[กิจกรรม],$H$8) -> 0 | I56: =IFERROR(AVERAGEIFS(data[ไมล์ต่อแกลลอน],data[วันที่],G56,data[กิจกรรม],$I$8),NA()) ->  | J56: =IFERROR(AVERAGEIFS(data[¢/ไมล์],data[วันที่],G56,data[กิจกรรม],$J$8),NA()) -> 
F57: 48 | G57: 2012-06-17 | H57: =SUMIFS(data[ไมล์],data[วันที่],G57,data[กิจกรรม],$H$8) -> 0 | I57: =IFERROR(AVERAGEIFS(data[ไมล์ต่อแกลลอน],data[วันที่],G57,data[กิจกรรม],$I$8),NA()) ->  | J57: =IFERROR(AVERAGEIFS(data[¢/ไมล์],data[วันที่],G57,data[กิจกรรม],$J$8),NA()) -> 
F58: 49 | G58: 2012-06-18 | H58: =SUMIFS(data[ไมล์],data[วันที่],G58,data[กิจกรรม],$H$8) -> 0 | I58: =IFERROR(AVERAGEIFS(data[ไมล์ต่อแกลลอน],data[วันที่],G58,data[กิจกรรม],$I$8),NA()) ->  | J58: =IFERROR(AVERAGEIFS(data[¢/ไมล์],data[วันที่],G58,data[กิจกรรม],$J$8),NA()) -> 
F59: 50 | G59: 2012-06-19 | H59: =SUMIFS(data[ไมล์],data[วันที่],G59,data[กิจกรรม],$H$8) -> 0 | I59: =IFERROR(AVERAGEIFS(data[ไมล์ต่อแกลลอน],data[วันที่],G59,data[กิจกรรม],$I$8),NA()) ->  | J59: =IFERROR(AVERAGEIFS(data[¢/ไมล์],data[วันที่],G59,data[กิจกรรม],$J$8),NA()) -> 
F60: 51 | G60: 2012-06-20 | H60: =SUMIFS(data[ไมล์],data[วันที่],G60,data[กิจกรรม],$H$8) -> 0 | I60: =IFERROR(AVERAGEIFS(data[ไมล์ต่อแกลลอน],data[วันที่],G60,data[กิจกรรม],$I$8),NA()) ->  | J60: =IFERROR(AVERAGEIFS(data[¢/ไมล์],data[วันที่],G60,data[กิจกรรม],$J$8),NA()) -> 
F61: 52 | G61: 2012-06-21 | H61: =SUMIFS(data[ไมล์],data[วันที่],G61,data[กิจกรรม],$H$8) -> 0 | I61: =IFERROR(AVERAGEIFS(data[ไมล์ต่อแกลลอน],data[วันที่],G61,data[กิจกรรม],$I$8),NA()) ->  | J61: =IFERROR(AVERAGEIFS(data[¢/ไมล์],data[วันที่],G61,data[กิจกรรม],$J$8),NA()) -> 
F62: 53 | G62: 2012-06-22 | H62: =SUMIFS(data[ไมล์],data[วันที่],G62,data[กิจกรรม],$H$8) -> 0 | I62: =IFERROR(AVERAGEIFS(data[ไมล์ต่อแกลลอน],data[วันที่],G62,data[กิจกรรม],$I$8),NA()) ->  | J62: =IFERROR(AVERAGEIFS(data[¢/ไมล์],data[วันที่],G62,data[กิจกรรม],$J$8),NA()) -> 
F63: 54 | G63: 2012-06-23 | H63: =SUMIFS(data[ไมล์],data[วันที่],G63,data[กิจกรรม],$H$8) -> 0 | I63: =IFERROR(AVERAGEIFS(data[ไมล์ต่อแกลลอน],data[วันที่],G63,data[กิจกรรม],$I$8),NA()) ->  | J63: =IFERROR(AVERAGEIFS(data[¢/ไมล์],data[วันที่],G63,data[กิจกรรม],$J$8),NA()) -> 
F64: 55 | G64: 2012-06-24 | H64: =SUMIFS(data[ไมล์],data[วันที่],G64,data[กิจกรรม],$H$8) -> 0 | I64: =IFERROR(AVERAGEIFS(data[ไมล์ต่อแกลลอน],data[วันที่],G64,data[กิจกรรม],$I$8),NA()) ->  | J64: =IFERROR(AVERAGEIFS(data[¢/ไมล์],data[วันที่],G64,data[กิจกรรม],$J$8),NA()) -> 
F65: 56 | G65: 2012-06-25 | H65: =SUMIFS(data[ไมล์],data[วันที่],G65,data[กิจกรรม],$H$8) -> 0 | I65: =IFERROR(AVERAGEIFS(data[ไมล์ต่อแกลลอน],data[วันที่],G65,data[กิจกรรม],$I$8),NA()) ->  | J65: =IFERROR(AVERAGEIFS(data[¢/ไมล์],data[วันที่],G65,data[กิจกรรม],$J$8),NA()) -> 
F66: 57 | G66: 2012-06-26 | H66: =SUMIFS(data[ไมล์],data[วันที่],G66,data[กิจกรรม],$H$8) -> 0 | I66: =IFERROR(AVERAGEIFS(data[ไมล์ต่อแกลลอน],data[วันที่],G66,data[กิจกรรม],$I$8),NA()) ->  | J66: =IFERROR(AVERAGEIFS(data[¢/ไมล์],data[วันที่],G66,data[กิจกรรม],$J$8),NA()) -> 
F67: 58 | G67: 2012-06-27 | H67: =SUMIFS(data[ไมล์],data[วันที่],G67,data[กิจกรรม],$H$8) -> 0 | I67: =IFERROR(AVERAGEIFS(data[ไมล์ต่อแกลลอน],data[วันที่],G67,data[กิจกรรม],$I$8),NA()) ->  | J67: =IFERROR(AVERAGEIFS(data[¢/ไมล์],data[วันที่],G67,data[กิจกรรม],$J$8),NA()) -> 
F68: 59 | G68: 2012-06-28 | H68: =SUMIFS(data[ไมล์],data[วันที่],G68,data[กิจกรรม],$H$8) -> 0 | I68: =IFERROR(AVERAGEIFS(data[ไมล์ต่อแกลลอน],data[วันที่],G68,data[กิจกรรม],$I$8),NA()) ->  | J68: =IFERROR(AVERAGEIFS(data[¢/ไมล์],data[วันที่],G68,data[กิจกรรม],$J$8),NA()) -> 
F69: 60 | G69: 2012-06-29 | H69: =SUMIFS(data[ไมล์],data[วันที่],G69,data[กิจกรรม],$H$8) -> 0 | I69: =IFERROR(AVERAGEIFS(data[ไมล์ต่อแกลลอน],data[วันที่],G69,data[กิจกรรม],$I$8),NA()) ->  | J69: =IFERROR(AVERAGEIFS(data[¢/ไมล์],data[วันที่],G69,data[กิจกรรม],$J$8),NA()) -> 
